bitfinex/quotes_SOLUSD_20230102
["timestamp","ask_amount","ask_price","bid_price","bid_amount"]
[1672664682747,30.0,11.128,11.115,67.56]
[1672664682954,67.49,11.127,11.115,83.36730786]
[1672664683165,30.0,11.126,11.115,83.36730786]
[1672664686939,30.0,11.126,11.116,17.0]
[1672664687153,30.0,11.126,11.117,67.55]
[1672664687365,30.0,11.126,11.118,17.0]
[1672664688107,176.5036,11.127,11.117,17.0]
[1672664688315,176.5036,11.127,11.118,67.55]
[1672664688531,176.5036,11.127,11.119,17.0]
[1672664690218,109.0136,11.127,11.12,67.53]
[1672664690431,45.9461,11.134,11.122,30.0]
[1672664690644,155.1064,11.134,11.123,84.52]
[1672664690839,97.46,11.133,11.122,67.52]
[1672664691050,206.6203,11.133,11.123,19.5]
[1672664691474,17.0,11.132,11.12,67.53]
[1672664691676,67.47,11.131,11.12,67.53]
[1672664691889,47.0,11.13,11.12,67.53]
[1672664692105,67.48,11.129,11.12,67.53]
[1672664692312,67.48,11.129,11.121,20.0]
[1672664692755,67.48,11.129,11.12,20.0]
[1672664693159,67.48,11.129,11.119,67.54]
[1672664693363,30.0,11.128,11.115,67.56]
[1672664693581,30.0,11.126,11.115,67.56]
[1672664694202,30.0,11.126,11.115,83.36730786]
[1672664694408,147.2871,11.126,11.115,83.36730786]
[1672664695359,147.2871,11.126,11.116,17.0]
[1672664695571,147.2871,11.126,11.117,67.55]
[1672664695796,147.2871,11.126,11.118,17.0]
[1672664696111,117.2871,11.126,11.118,17.0]
[1672664696528,117.2871,11.126,11.117,17.0]
[1672664700102,67.5,11.125,11.116,17.0]
[1672664700315,181.7858,11.125,11.116,17.0]
[1672664700529,114.2858,11.125,11.116,17.0]
[1672664701667,114.2858,11.125,11.115,83.36730786]
[1672664701882,67.51,11.124,11.115,83.36730786]
[1672664702212,24.4941,11.129,11.115,83.36730786]
[1672664702213,6.88,11.15,11.129,15.80730786]
[1672664702426,112.9786,11.144,11.13,67.47]
[1672664702616,112.9786,11.143,11.13,67.47]
[1672664702821,30.0,11.141,11.129,67.48]
[1672664703041,67.41,11.14,11.129,67.48]
[1672664703357,30.0,11.139,11.129,67.48]
[1672664703580,20.0,11.138,11.129,67.48]
[1672664704286,87.43,11.138,11.129,67.48]
[1672664704930,30.0,11.137,11.129,67.48]
[1672664706433,87.43,11.138,11.129,67.48]
[1672664706628,17.0,11.137,11.129,67.48]
[1672664708840,20.0,11.138,11.129,67.48]
[1672664712006,20.0,11.138,11.13,17.0]
[1672664716298,87.43,11.138,11.13,17.0]
[1672664716509,20.0,11.138,11.129,83.28730786]
[1672664717019,135.6563,11.138,11.129,83.28730786]
[1672664718905,17.0,11.137,11.129,83.28730786]
[1672664719114,47.0,11.137,11.129,83.28730786]
[1672664719586,47.0,11.137,11.129,67.48]
[1672664720099,17.0,11.137,11.129,67.48]
[1672664724716,17.0,11.137,11.129,83.28730786]
[1672664731128,47.0,11.137,11.129,67.48]
[1672664731668,47.0,11.137,11.128,248.91538499]
[1672664733641,47.0,11.137,11.128,67.49]
[1672664735955,71.0596,11.137,11.128,67.49]
[1672664739011,41.0596,11.137,11.128,67.49]
[1672664741841,30.0,11.136,11.128,67.49]
[1672664742068,97.44,11.136,11.125,67.5]
[1672664742261,30.0,11.134,11.125,67.5]
[1672664742586,17.0,11.133,11.126,30.0]
[1672664743220,17.0,11.133,11.125,67.5]
[1672664750890,17.0,11.133,11.124,90.2925]
[1672664751098,30.0,11.131,11.124,22.7825]
[1672664751503,17.0,11.13,11.124,22.7825]
[1672664751931,17.0,11.13,11.123,23.7131]
[1672664759833,84.47,11.13,11.123,23.7131]
[1672664760145,30.0,11.129,11.123,23.7131]
[1672664760551,30.0,11.129,11.121,90.9164]
[1672664760753,30.0,11.129,11.122,20.0]
[1672664761521,30.0,11.129,11.121,20.0]
[1672664762444,30.0,11.129,11.121,35.80730786]
[1672664762655,30.0,11.129,11.122,67.52]
[1672664762867,30.0,11.129,11.123,20.0]
[1672664763512,30.0,11.129,11.122,20.0]
[1672664763821,30.0,11.129,11.121,20.0]
[1672664764242,97.47,11.131,11.122,15.80730786]
[1672664764454,52.5002,11.132,11.123,37.0]
[1672664764769,52.5002,11.132,11.124,67.51]
[1672664766982,22.5002,11.132,11.124,67.51]
[1672664774115,22.5002,11.132,11.125,30.0]
[1672664774428,22.5002,11.132,11.126,67.5]
[1672664774856,22.5002,11.132,11.124,67.51]
[1672664777164,22.5002,11.132,11.125,30.0]
[1672664777373,22.5002,11.132,11.126,67.5]
[1672664777577,22.5002,11.132,11.125,15.80730786]
[1672664777790,22.5002,11.132,11.126,84.5]
[1672664777999,22.5002,11.132,11.126,67.5]
[1672664778426,22.5002,11.132,11.124,67.51]
[1672664778649,22.5002,11.132,11.124,97.51]
[1672664780521,22.5002,11.132,11.124,113.31730786]
[1672664782419,47.0,11.131,11.124,67.51]
[1672664783561,17.0,11.131,11.124,67.51]
[1672664791252,22.5002,11.132,11.124,67.51]
[1672664791447,22.5002,11.132,11.125,30.0]
[1672664791776,22.5002,11.132,11.126,67.5]
[1672664792711,17.0,11.131,11.124,67.51]
[1672664796609,17.0,11.131,11.124,83.31730786]
[1672664806395,17.0,11.131,11.124,67.51]
[1672664806811,22.5002,11.132,11.124,67.51]
[1672664807006,22.5002,11.132,11.124,83.31730786]
[1672664807953,22.5002,11.132,11.125,17.0]
[1672664808158,22.5002,11.132,11.126,67.5]
[1672664808795,22.5002,11.132,11.127,15.80730786]
[1672664809216,22.5002,11.132,11.128,67.49]
[1672664809425,140.7755,11.133,11.128,67.49]
[1672664809634,140.7755,11.133,11.126,67.5]
[1672664816563,30.0,11.131,11.123,22.9938]
[1672664816770,67.47,11.13,11.123,22.9938]
[1672664816986,30.0,11.131,11.123,22.9938]
[1672664817306,110.4712,11.132,11.123,90.5138]
[1672664818136,133.469,11.132,11.123,90.5138]
[1672664818566,133.469,11.132,11.124,17.0]
[1672664818790,133.469,11.132,11.125,67.5]
[1672664820673,17.0,11.131,11.124,67.51]
[1672664821210,133.469,11.132,11.124,67.51]
[1672664821428,17.0,11.131,11.124,67.51]
[1672664822581,133.469,11.132,11.124,67.51]
[1672664825833,30.0,11.131,11.124,67.51]
[1672664826048,17.0,11.13,11.124,67.51]
[1672664826987,20.0,11.129,11.123,22.9938]
[1672664827201,30.0,11.127,11.114,22.9207]
[1672664827391,30.0,11.127,11.115,30.0]
[1672664827606,110.3913,11.126,11.115,30.0]
[1672664827811,110.3913,11.126,11.116,67.56]
[1672664829384,47.0,11.125,11.116,67.56]
[1672664830440,70.2732,11.125,11.116,67.56]
[1672664834148,40.2732,11.125,11.116,67.56]
[1672664835293,70.2732,11.125,11.116,67.56]
[1672664836344,40.2732,11.125,11.116,67.56]
[1672664836554,40.2732,11.125,11.117,17.0]
[1672664838765,40.2732,11.125,11.116,67.56]
[1672664840853,30.0,11.124,11.115,30.0]
[1672664841061,53.5417,11.124,11.115,30.0]
[1672664841272,17.0,11.123,11.116,67.56]
[1672664842848,17.0,11.123,11.113,67.58]
[1672664843059,53.5417,11.122,11.114,17.41012378]
[1672664843274,53.5417,11.122,11.115,67.56]
[1672664843806,23.5417,11.122,11.115,67.56]
[1672664848853,23.5417,11.122,11.115,83.36730786]
[1672664849595,23.5417,11.122,11.116,17.0]
[1672664849909,23.5417,11.122,11.117,67.55]
[1672664852328,23.5417,11.122,11.118,17.0]
[1672664853057,134.8961,11.123,11.117,17.0]
[1672664853273,134.8961,11.123,11.118,67.55]
[1672664854219,134.8961,11.123,11.116,67.56]
[1672664854418,47.0,11.122,11.115,15.80730786]
[1672664854647,47.0,11.122,11.113,67.58]
[1672664854848,71.6297,11.122,11.113,67.58]
[1672664856737,41.6297,11.122,11.113,67.58]
[1672664856952,41.6297,11.122,11.114,17.0]
[1672664857161,41.6297,11.122,11.115,67.56]
[1672664861797,24.6297,11.122,11.115,67.56]
[1672664869347,17.0,11.121,11.115,67.56]
[1672664869556,17.0,11.121,11.113,83.38730786]
[1672664869882,17.0,11.121,11.114,0.41012378]
[1672664869883,40.357,11.121,11.114,0.41012378]
[1672664870205,23.357,11.121,11.113,113.38730786]
[1672664870402,23.357,11.121,11.114,17.0]
[1672664870608,23.357,11.121,11.115,67.56]
[1672664871024,23.357,11.121,11.114,67.57]
[1672664872419,23.357,11.121,11.115,17.0]
[1672664872616,23.357,11.121,11.116,67.56]
[1672664873026,23.357,11.121,11.115,67.56]
[1672664873464,23.357,11.121,11.114,67.57]
[1672664874195,23.357,11.121,11.114,83.37730786]
[1672664874390,23.357,11.121,11.115,17.0]
[1672664874602,23.357,11.121,11.116,67.56]
[1672664875776,23.357,11.121,11.115,67.56]
[1672664882075,17.0,11.12,11.115,67.44730482]
[1672664882292,47.0,11.12,11.113,67.58]
[1672664882499,47.0,11.12,11.113,67.99016069]
[1672664882710,47.0,11.12,11.114,0.41012378]
[1672664882925,47.0,11.12,11.113,67.58]
[1672664883658,47.0,11.12,11.112,115.8832]
[1672664883870,47.0,11.12,11.113,0.41016069]
[1672664884081,47.0,11.12,11.113,0.41012378]
[1672664885010,17.0,11.12,11.113,0.41012378]
[1672664886800,137.6656,11.121,11.114,67.57]
[1672664887023,137.6656,11.121,11.113,84.58]
[1672664889335,137.6656,11.121,11.113,67.58]
[1672664889547,17.0,11.12,11.113,67.58]
[1672664890495,137.6656,11.121,11.113,67.58]
[1672664895843,17.0,11.12,11.113,67.58]
[1672664896483,47.0,11.12,11.113,67.58]
[1672664897225,47.0,11.12,11.112,115.8832]
[1672664899851,17.0,11.12,11.112,131.69050786]
[1672664903305,17.0,11.12,11.112,115.8832]
[1672664907005,16.88638807,11.12,11.112,115.8832]
[1672664908158,205.1956,11.121,11.112,115.8832]
[1672664908351,137.6656,11.121,11.112,115.8832]
[1672664909116,137.6656,11.121,11.112,131.69050786]
[1672664909425,47.0,11.12,11.112,115.8832]
[1672664911609,17.0,11.12,11.112,115.8832]
[1672664912868,17.0,11.12,11.096,44.13535417]
[1672664912869,30.0,11.119,11.096,44.13535417]
[1672664913076,30.0,11.117,11.102,23.56806712]
[1672664913306,30.0,11.115,11.103,0.41053013]
[1672664913613,66.4847,11.114,11.104,67.63]
[1672664913829,66.4847,11.114,11.105,0.41045619]
[1672664914147,66.4847,11.114,11.106,67.62]
[1672664914355,66.4847,11.114,11.105,67.63]
[1672664914687,138.2379,11.113,11.104,15.80730786]
[1672664914879,17.0,11.112,11.105,68.04045619]
[1672664915088,17.0,11.112,11.105,67.63]
[1672664916673,47.0,11.112,11.105,67.63]
[1672664916875,47.0,11.112,11.103,67.64]
[1672664917085,179.1706,11.112,11.104,0.41049316]
[1672664917307,179.1706,11.112,11.105,67.63]
[1672664917822,179.1706,11.112,11.103,67.64]
[1672664918027,149.1706,11.112,11.103,68.05053013]
[1672664918235,149.1706,11.112,11.104,0.41049316]
[1672664918464,149.1706,11.112,11.105,67.63]
[1672664919101,149.1706,11.112,11.103,67.64]
[1672664919306,149.1706,11.112,11.103,68.05053013]
[1672664919524,149.1706,11.112,11.104,0.41049316]
[1672664919826,149.1706,11.112,11.105,67.63]
[1672664920229,149.1706,11.112,11.103,67.64]
[1672664920444,149.1706,11.112,11.104,0.41049316]
[1672664920780,149.1706,11.112,11.104,0.41045619]
[1672664925516,149.1706,11.112,11.105,15.80730786]
[1672664926137,149.1706,11.112,11.103,67.64]
[1672664926345,149.1706,11.112,11.104,0.41049316]
[1672664926555,149.1706,11.112,11.104,0.41045619]
[1672664928151,67.59,11.111,11.104,0.41045619]
[1672664928470,47.0,11.11,11.103,0.41045619]
[1672664928676,67.6,11.109,11.103,0.41045619]
[1672664929204,47.0,11.108,11.103,0.41045619]
[1672664929517,47.0,11.108,11.102,23.1575]
[1672664929831,30.0,11.107,11.083,702.17548122]
[1672664930027,67.62,11.106,11.083,158.04832845]
[1672664930241,166.2913,11.105,11.084,30.0]
[1672664930453,114.63,11.104,11.088,44.19560736]
[1672664930655,166.2913,11.103,11.093,67.7]
[1672664930865,67.64,11.102,11.093,67.7]
[1672664931288,67.64,11.102,11.084,300.0]
[1672664931289,30.0,11.101,11.089,67.72]
[1672664931499,196.2913,11.101,11.089,30.0]
[1672664931813,166.2913,11.101,11.091,30.0]
[1672664932028,24.0172,11.1,11.092,87.7]
[1672664932249,24.0172,11.1,11.093,30.0]
[1672664932457,24.0172,11.1,11.094,67.69]
[1672664933203,24.0172,11.1,11.093,67.7]
[1672664933401,24.0172,11.1,11.094,17.0]
[1672664933939,24.0172,11.1,11.093,67.7]
[1672664934254,24.0172,11.1,11.094,30.0]
[1672664934463,24.0172,11.1,11.095,17.0]
[1672664934876,24.0172,11.1,11.093,67.7]
[1672664936435,24.0172,11.1,11.094,17.0]
[1672664936664,24.0172,11.1,11.095,97.69]
[1672664936871,24.0172,11.1,11.095,67.69]
[1672664937707,24.0172,11.1,11.096,17.0]
[1672664937918,24.0172,11.1,11.095,67.69]
[1672664939389,24.0172,11.1,11.093,67.7]
[1672664943904,24.0172,11.1,11.095,30.0]
[1672664944120,24.0172,11.1,11.095,67.69]
[1672664944951,24.0172,11.1,11.093,67.7]
[1672664948121,17.0,11.099,11.093,67.7]
[1672664948313,17.0,11.099,11.092,20.0]
[1672664948852,17.0,11.099,11.091,92.1841]
[1672664949055,30.0,11.097,11.08,6.91]
[1672664949262,97.67,11.097,11.085,0.41119682]
[1672664949476,64.627,11.096,11.081,172.76776758]
[1672664949689,157.2944,11.095,11.083,30.0]
[1672664950008,17.0,11.094,11.084,68.16123392]
[1672664950220,17.0,11.094,11.085,0.41119682]
[1672664950540,157.2944,11.094,11.086,67.74]
[1672664950748,157.2944,11.094,11.087,0.41112264]
[1672664950942,157.2944,11.094,11.086,67.74]
[1672664951593,157.2944,11.094,11.085,30.0]
[1672664951782,157.2944,11.094,11.086,67.74]
[1672664951995,157.2944,11.094,11.087,0.41112264]
[1672664952232,157.2944,11.094,11.086,67.74]
[1672664952420,47.0,11.093,11.084,67.75]
[1672664952627,71.6942,11.093,11.084,0.41123392]
[1672664952835,30.0,11.091,11.085,0.41119682]
[1672664953059,30.0,11.091,11.083,0.41115972]
[1672664953266,52.6059,11.091,11.084,67.75]
[1672664953585,17.0,11.09,11.085,0.41119682]
[1672664953781,188.5432,11.091,11.082,68.18115972]
[1672664953992,188.5432,11.091,11.082,0.41115972]
[1672664954203,158.5432,11.091,11.083,67.76]
[1672664954416,22.6059,11.09,11.084,0.41123392]
[1672664954630,22.6059,11.09,11.084,0.41119682]
[1672664954844,134.1299,11.09,11.084,0.41119682]
[1672664955045,30.0,11.088,11.072,9.4236292]
[1672664955372,30.0,11.086,11.072,25.23093706]
[1672664955558,179.274,11.085,11.073,67.82]
[1672664955778,111.524,11.085,11.073,67.82]
[1672664955977,30.0,11.083,11.073,67.82]
[1672664956420,176.7112,11.084,11.073,67.82]
[1672664956628,159.7112,11.084,11.073,83.62730786]
[1672664956945,54.9077,11.083,11.073,67.82]
[1672664957352,30.0,11.082,11.073,67.82]
[1672664958098,29.88732607,11.082,11.073,67.82]
[1672664958502,29.88732607,11.082,11.074,0.46529385]
[1672664958832,189.7112,11.083,11.074,0.46525184]
[1672664959868,189.7112,11.083,11.074,0.46525182]
[1672664960288,189.7112,11.083,11.075,67.81]
[1672664960513,189.7112,11.083,11.076,0.46520981]
[1672664960703,189.7112,11.083,11.075,0.46516781]
[1672664960914,17.0,11.082,11.075,0.46516781]
[1672664961249,17.0,11.082,11.074,0.46520981]
[1672664961450,30.0,11.081,11.074,0.46520981]
[1672664962076,29.88738658,11.081,11.074,0.46520981]
[1672664962300,29.88738658,11.081,11.073,0.46525182]
[1672664962614,17.0,11.08,11.073,0.46525182]
[1672664963016,16.88738506,11.08,11.073,0.46525182]
[1672664963226,165.776,11.081,11.073,0.46525182]
[1672664964076,165.66338506,11.081,11.073,0.46525182]
[1672664964290,165.66338506,11.081,11.073,17.46525182]
[1672664965031,165.55077012,11.081,11.074,30.0]
[1672664965246,165.55077012,11.081,11.075,0.46525182]
[1672664965434,165.55077012,11.081,11.075,17.46520981]
[1672664966169,165.43815518,11.081,11.075,17.46520981]
[1672664966378,165.43815518,11.081,11.075,0.46520981]
[1672664967132,165.32554024,11.081,11.075,0.46520981]
[1672664968080,165.2129253,11.081,11.075,0.46520981]
[1672664969029,165.10031036,11.081,11.075,0.46520981]
[1672664969957,164.98769542,11.081,11.075,0.46520981]
[1672664971110,164.87508048,11.081,11.075,0.46520981]
[1672664971634,164.87508048,11.081,11.076,30.0]
[1672664971839,23.3363,11.085,11.078,30.0]
[1672664972053,67.72,11.09,11.079,88.24508382]
[1672664972275,24.0943,11.091,11.08,16.96504185]
[1672664972492,67.68,11.096,11.081,87.77]
[1672664972702,67.68,11.096,11.082,0.46495791]
[1672664972922,67.68,11.096,11.082,30.46491596]
[1672664973947,67.67,11.098,11.082,30.46491596]
[1672664974153,67.67,11.098,11.083,67.76]
[1672664974366,67.67,11.098,11.084,30.46487401]
[1672664974590,67.67,11.098,11.085,0.46483207]
[1672664974799,67.67,11.098,11.084,47.0]
[1672664975416,30.0,11.097,11.084,47.0]
[1672664975627,67.68,11.096,11.084,17.0]
[1672664976259,17.0,11.095,11.084,17.0]
[1672664976481,67.69,11.094,11.084,17.0]
[1672664976690,179.8789,11.094,11.084,17.0]
[1672664977326,179.8789,11.094,11.083,17.0]
[1672664977533,112.1889,11.093,11.084,0.46487401]
[1672664977732,112.1889,11.093,11.084,0.46483207]
[1672664980796,112.1889,11.093,11.084,30.46483207]
[1672664981008,114.4392,11.1,11.085,121.40452]
[1672664981194,114.4392,11.1,11.087,30.0]
[1672664981405,114.4392,11.1,11.088,121.38001]
[1672664981611,114.4392,11.1,11.088,137.18731786]
[1672664981842,114.4392,11.1,11.089,30.0]
[1672664982051,114.4392,11.1,11.091,30.0]
[1672664982275,114.4392,11.1,11.092,20.0]
[1672664982468,114.4392,11.1,11.093,17.0]
[1672664983106,114.4392,11.1,11.092,20.0]
[1672664984149,114.4392,11.1,11.091,20.0]
[1672664984560,84.66,11.099,11.091,20.0]
[1672664984768,50.0,11.098,11.089,47.3664]
[1672664984997,84.67,11.097,11.089,47.3664]
[1672664985209,67.67,11.097,11.086,30.0]
[1672664985413,177.7618,11.097,11.086,30.0]
[1672664986052,177.7618,11.097,11.088,17.0]
[1672664986457,177.7618,11.097,11.087,17.0]
[1672664986682,225.7963,11.097,11.087,17.0]
[1672664988144,225.7963,11.097,11.086,17.0]
[1672664988361,225.7963,11.097,11.085,17.0]
[1672664988362,133.7169,11.096,11.085,17.0]
[1672664988892,157.4257,11.096,11.085,17.0]
[1672664990658,24.1687,11.095,11.085,17.0]
[1672664991403,140.2918,11.095,11.085,17.0]
[1672664997068,207.9818,11.095,11.085,17.0]
[1672664997710,207.9818,11.095,11.083,97.76]
[1672664997924,134.4813,11.094,11.084,30.46487401]
[1672664998131,134.4813,11.094,11.085,0.46483207]
[1672664998332,134.4813,11.094,11.084,30.0]
[1672664999070,134.4813,11.094,11.085,17.0]
[1672665001929,22.9854,11.094,11.085,17.0]
[1672665002237,22.9854,11.094,11.086,117.74]
[1672665002449,22.9854,11.094,11.088,30.0]
[1672665002642,148.835,11.1,11.089,17.0]
[1672665002854,23.9069,11.099,11.09,20.0]
[1672665003064,91.5669,11.099,11.091,17.0]
[1672665003297,91.5669,11.099,11.092,20.0]
[1672665004957,17.0,11.098,11.091,20.0]
[1672665005395,67.67,11.097,11.091,20.0]
[1672665005603,67.67,11.098,11.091,20.0]
[1672665005815,91.5669,11.099,11.091,20.0]
[1672665006423,20.0,11.098,11.087,67.74]
[1672665006634,84.67,11.097,11.072,9.4236292]
[1672665006844,6.59425935,11.087,11.081,0.46499987]
[1672665007069,68.61348401,11.084,11.072,9.4236292]
[1672665007262,104.76,11.083,11.072,9.4236292]
[1672665007477,30.0,11.082,11.072,9.4236292]
[1672665007695,67.77,11.081,11.072,9.4236292]
[1672665007909,257.7672,11.088,11.072,9.4236292]
[1672665008319,30.0,11.086,11.072,9.4236292]
[1672665008540,30.0,11.084,11.072,9.4236292]
[1672665008731,84.76,11.083,11.072,9.4236292]
[1672665008945,30.0,11.082,11.072,9.4236292]
[1672665009156,67.77,11.081,11.072,9.4236292]
[1672665009368,67.77,11.081,11.073,17.0]
[1672665009807,67.76,11.083,11.073,17.0]
[1672665010000,186.7671,11.084,11.073,17.0]
[1672665010218,119.0171,11.084,11.074,30.0]
[1672665010424,119.0171,11.084,11.075,17.0]
[1672665011373,30.0,11.083,11.075,17.0]
[1672665011787,119.0171,11.084,11.075,17.0]
[1672665012225,119.0171,11.084,11.075,30.0]
[1672665012538,119.0171,11.084,11.076,33.66805]
[1672665013380,67.73,11.088,11.077,30.0]
[1672665013690,247.9855,11.096,11.078,53.66504]
[1672665013907,30.0,11.095,11.079,97.78]
[1672665014104,30.0,11.095,11.081,30.0]
[1672665014105,30.0,11.093,11.081,30.0]
[1672665014317,67.7,11.092,11.081,30.0]
[1672665014532,67.7,11.092,11.082,17.0]
[1672665015066,0.46119684,11.091,11.082,17.0]
[1672665015785,30.46119684,11.091,11.082,17.0]
[1672665015986,30.46119684,11.091,11.08,20.0]
[1672665016202,67.72,11.09,11.08,20.0]
[1672665016407,0.46119684,11.089,11.08,20.0]
[1672665016849,30.46119684,11.089,11.08,20.0]
[1672665017674,0.46119684,11.089,11.08,20.0]
[1672665018523,0.46119684,11.089,11.081,17.0]
[1672665020311,17.46119684,11.089,11.08,20.0]
[1672665020629,47.46119684,11.089,11.08,20.0]
[1672665020844,67.73,11.088,11.08,20.0]
[1672665021150,30.46119684,11.087,11.076,50.0]
[1672665021568,0.46119684,11.087,11.076,65.80730786]
[1672665021777,30.0,11.085,11.073,67.82]
[1672665022099,68.21119684,11.084,11.073,15.80730786]
[1672665022511,176.76489684,11.084,11.073,83.62730786]
[1672665022942,109.01489684,11.084,11.074,30.0]
[1672665023251,109.01489684,11.084,11.075,84.81]
[1672665023678,30.0,11.083,11.075,100.61730786]
[1672665023870,0.46119684,11.082,11.075,17.0]
[1672665024074,0.46119684,11.082,11.074,17.0]
[1672665025357,0.46119684,11.082,11.074,32.80730786]
[1672665025673,30.46119684,11.082,11.073,67.82]
[1672665025879,147.46899684,11.082,11.073,67.82]
[1672665026287,67.77,11.081,11.072,9.4236292]
[1672665026499,47.46119684,11.08,11.072,9.4236292]
[1672665027566,67.78,11.079,11.072,9.4236292]
[1672665027790,0.46119684,11.078,11.072,9.4236292]
[1672665029044,67.8,11.077,11.072,9.4236292]
[1672665029256,30.46119684,11.076,11.072,9.4236292]
[1672665029660,0.46119684,11.076,11.072,9.4236292]
[1672665042915,0.46119684,11.076,11.073,67.82]
[1672665043439,108.6975,11.079,11.073,67.82]
[1672665043974,108.6975,11.079,11.074,17.0]
[1672665044287,108.6975,11.079,11.075,67.81]
[1672665044480,70.3653,11.083,11.075,67.81]
[1672665045112,30.0,11.082,11.073,67.82]
[1672665045325,149.4159,11.082,11.072,9.4236292]
[1672665045543,30.0,11.08,11.072,9.4236292]
[1672665047950,204.1859,11.081,11.072,9.4236292]
[1672665048700,30.0,11.08,11.072,9.4236292]
[1672665049012,30.0,11.078,11.072,9.4236292]
[1672665049232,67.8,11.077,11.072,9.4236292]
[1672665049624,30.0,11.078,11.072,9.4236292]
[1672665049848,30.0,11.076,11.072,9.4236292]
[1672665051969,84.81,11.075,11.072,9.4236292]
[1672665052379,67.81,11.075,11.072,9.4236292]
[1672665053425,30.0,11.076,11.072,9.4236292]
[1672665053849,67.81,11.075,11.072,9.4236292]
[1672665054264,30.0,11.076,11.072,9.4236292]
[1672665054681,67.81,11.075,11.072,9.4236292]
[1672665055753,30.0,11.076,11.072,9.4236292]
[1672665055945,67.8,11.077,11.072,9.4236292]
[1672665056574,115.7729,11.078,11.072,9.4236292]
[1672665057434,17.0,11.077,11.072,9.4236292]
[1672665057620,97.8,11.076,11.072,9.4236292]
[1672665058036,17.0,11.075,11.072,9.4236292]
[1672665058460,97.8,11.076,11.072,9.4236292]
[1672665058898,67.8,11.076,11.072,9.4236292]
[1672665059103,97.8,11.077,11.072,9.4236292]
[1672665059639,67.8,11.077,11.072,9.4236292]
[1672665059852,113.3731,11.082,11.072,9.4236292]
[1672665060054,181.1431,11.082,11.072,9.4236292]
[1672665060467,181.1431,11.082,11.073,17.0]
[1672665060791,113.3731,11.082,11.074,67.81]
[1672665061191,113.3731,11.082,11.073,67.82]
[1672665061410,30.0,11.081,11.073,67.82]
[1672665061617,30.0,11.081,11.072,9.4236292]
[1672665062047,181.1431,11.082,11.072,9.4236292]
[1672665062263,113.3731,11.082,11.072,9.4236292]
[1672665062581,30.0,11.081,11.072,9.4236292]
[1672665062891,97.77,11.081,11.072,9.4236292]
[1672665063401,30.0,11.081,11.072,77.2536292]
[1672665064453,181.1431,11.082,11.072,9.4236292]
[1672665064779,181.1431,11.082,11.072,77.2536292]
[1672665065001,113.3731,11.082,11.072,77.2536292]
[1672665066352,113.3731,11.082,11.074,30.0]
[1672665066667,113.3731,11.082,11.075,67.81]
[1672665067088,72.3909,11.083,11.074,67.81]
[1672665067520,72.3909,11.083,11.075,17.0]
[1672665067723,72.3909,11.083,11.076,67.8]
[1672665068865,49.096,11.083,11.076,67.8]
[1672665069298,49.096,11.083,11.074,30.0]